OrganisationNameLabel,OrganisationURI,EffectiveDate,Directorate/ServiceWhereExpenditureIncurred,ServiceCategoryLabel,ServiceCategoryURI,Supplier,SupplierRegisteredCompany Number,PaymentDate,TransactionNumber,NetAmount,IrrecoverableVAT,PurposeOfSpend,ProcurementClassification:ProclassLabel,ProcrementClassification:ProClassCode
South Lakeland District Council,http://opendatacommunities.org/id/district-council/south-lakeland,30/09/2021,Business Support Community Services,Cultural Environmental Regulatory & Planning Services,http://opendatacommunities.org/def/concept/finance/sercop/objective/104,DENNIS EAGLE LTD,03794455,16-09-2021,0000169988,259.35,0,Parts,381300,Vehicle Mgt Industrial
South Lakeland District Council,http://opendatacommunities.org/id/district-council/south-lakeland,30/09/2021,Business Support Community Services,Cultural Environmental Regulatory & Planning Services,http://opendatacommunities.org/def/concept/finance/sercop/objective/104,J R RICHARDSON LTD,02225792,16-09-2021,0000170096,259.46,0,Wash,381500,Vehicle Mgt Parts
South Lakeland District Council,http://opendatacommunities.org/id/district-council/south-lakeland,30/09/2021,Case Management Account Mgmt,Housing Services,http://opendatacommunities.org/def/concept/finance/sercop/objective/108,BUNZL CLEANING & HYGIENE SUPPLIES,2902454,06-09-2021,0000169804,259.56,0,Cleaning products - Quotation 48/23561,131011,Cleaning & Janitorial Cleaning Materials
South Lakeland District Council,http://opendatacommunities.org/id/district-council/south-lakeland,30/09/2021,Case Management Account Mgmt,Other Items,,ADECCO UK LIMITED,00593232,16-09-2021,0000169875,260.4,0,Agency Staff for Business Grants Support,261400,HR Temporary & Agency Staff
South Lakeland District Council,http://opendatacommunities.org/id/district-council/south-lakeland,30/09/2021,Assets and Commercial Services,Central Services,http://opendatacommunities.org/def/concept/finance/sercop/objective/102,CIPFA,02376684,22-09-2021,0000170218,270,0,online book for ST,261500,HR Training & Conferences
South Lakeland District Council,http://opendatacommunities.org/id/district-council/south-lakeland,30/09/2021,Support Services,Central Services,http://opendatacommunities.org/def/concept/finance/sercop/objective/102,VENN GROUP RECRUITMENT SOLUTIONS,,16-09-2021,0000170054,272.25,0,Time Sheets,261400,HR Temporary & Agency Staff
South Lakeland District Council,http://opendatacommunities.org/id/district-council/south-lakeland,30/09/2021,Business Support Community Services,Cultural Environmental Regulatory & Planning Services,http://opendatacommunities.org/def/concept/finance/sercop/objective/104,CUMBRIA WASTE RECYCLING LTD,03162439,16-09-2021,0000170128,273,0,Skip emptying,182012,Environment Waste Management Recycling
South Lakeland District Council,http://opendatacommunities.org/id/district-council/south-lakeland,30/09/2021,Assets and Commercial Services,Central Services,http://opendatacommunities.org/def/concept/finance/sercop/objective/102,CUMBRIA WASTE RECYCLING LTD,03162439,16-09-2021,0000170110,273.9,0,PO to cover monthly collection of,182012,Environment Waste Management Recycling
South Lakeland District Council,http://opendatacommunities.org/id/district-council/south-lakeland,30/09/2021,ICT Group,Central Services,http://opendatacommunities.org/def/concept/finance/sercop/objective/102,BRITISH TELECOMMUNICATIONS PLC,01800000,27-09-2021,0000170378,280.6,0,"Kendal Town Council line, covers 1/4/21",279999,ICT Not Elsewhere Classified
South Lakeland District Council,http://opendatacommunities.org/id/district-council/south-lakeland,30/09/2021,Assets and Commercial Services,External Trading Accounts,,Ulverston Properties Limited,,06-09-2021,0000169773,281.67,0,Rental fees for Room ,190000,Facilities & Management Services
South Lakeland District Council,http://opendatacommunities.org/id/district-council/south-lakeland,30/09/2021,Support Services,Non-Service Payments,,COMPUTERSHARE VOUCHER SERVICES LTD,04968447,13-09-2021,0000169967,283,0,Child Care Vouchers 20/21,202100,Financial Services Subscriptions
South Lakeland District Council,http://opendatacommunities.org/id/district-council/south-lakeland,30/09/2021,Business Support Community Services,Cultural Environmental Regulatory & Planning Services,http://opendatacommunities.org/def/concept/finance/sercop/objective/104,CUMBRIA WASTE RECYCLING LTD,03162439,16-09-2021,0000170119,283.8,0,Supply & emptying of 1100-l bins,182012,Environment Waste Management Recycling
South Lakeland District Council,http://opendatacommunities.org/id/district-council/south-lakeland,30/09/2021,Business Support Community Services,Cultural Environmental Regulatory & Planning Services,http://opendatacommunities.org/def/concept/finance/sercop/objective/104,INNOVATIVE SAFETY SYSTEMS LTD,06875015,27-09-2021,0000170354,296,0,Parts,192200,Facilities Security
South Lakeland District Council,http://opendatacommunities.org/id/district-council/south-lakeland,30/09/2021,Business Support Community Services,Cultural Environmental Regulatory & Planning Services,http://opendatacommunities.org/def/concept/finance/sercop/objective/104,FAUN ZOELLER (UK) LTD,00751804,06-09-2021,0000169647,297.35,0,Parts,381400,Vehicle Mgt Maintenance
South Lakeland District Council,http://opendatacommunities.org/id/district-council/south-lakeland,30/09/2021,Business Support Community Services,Cultural Environmental Regulatory & Planning Services,http://opendatacommunities.org/def/concept/finance/sercop/objective/104,Harry Park Tyres Ltd,08131208,29-09-2021,0000170358,297.5,0,Tyres,381500,Vehicle Mgt Parts
South Lakeland District Council,http://opendatacommunities.org/id/district-council/south-lakeland,30/09/2021,Business Support Community Services,Cultural Environmental Regulatory & Planning Services,http://opendatacommunities.org/def/concept/finance/sercop/objective/104,RIBBLESDALE AUTO ELECTRICS 1992 LTD,02732686,16-09-2021,0000170118,300,0,Parts,381500,Vehicle Mgt Parts
South Lakeland District Council,http://opendatacommunities.org/id/district-council/south-lakeland,30/09/2021,Case Management Account Mgmt,Central Services,http://opendatacommunities.org/def/concept/finance/sercop/objective/102,HER MAJESTY'S COURTS & TRIBUNAL SERVICE,,06-09-2021,0000169560,301.5,0,2021-22 C Tax Liability Orders,908001,Public Bodies Other Public Bodies
South Lakeland District Council,http://opendatacommunities.org/id/district-council/south-lakeland,30/09/2021,Business Support Community Services,Cultural Environmental Regulatory & Planning Services,http://opendatacommunities.org/def/concept/finance/sercop/objective/104,Slicker Recycling Ltd,08652156,16-09-2021,0000170075,304,0,Filter recycling,182015,Environment Waste Mgt Waste Disposal
South Lakeland District Council,http://opendatacommunities.org/id/district-council/south-lakeland,30/09/2021,Business Support Community Services,Cultural Environmental Regulatory & Planning Services,http://opendatacommunities.org/def/concept/finance/sercop/objective/104,COMPASS COMPONENTS,,22-09-2021,0000170310,304.69,0,Parts,101400,Building General Materials
South Lakeland District Council,http://opendatacommunities.org/id/district-council/south-lakeland,30/09/2021,Support Services,Other Items,,PS BUSINESS MATTERS,08147185,16-09-2021,0000170016,310,0,Welcome Back Project Activity Plan,151900,Consultancy Management
South Lakeland District Council,http://opendatacommunities.org/id/district-council/south-lakeland,30/09/2021,Business Support Community Services,Transport Planning Policy,http://opendatacommunities.org/def/concept/finance/sercop/objective/107,ARCO LIMITED,00133804,16-09-2021,0000170064,313.9,0,Cleaning materials,141100,Clothing Protective
South Lakeland District Council,http://opendatacommunities.org/id/district-council/south-lakeland,30/09/2021,Case Management Regulatory,Cultural Environmental Regulatory & Planning Services,http://opendatacommunities.org/def/concept/finance/sercop/objective/104,NEWSQUEST MEDIA GROUP LTD,03102566,16-09-2021,0000170088,314.16,0,Public notices for planning applications,191000,Facilities Advertising
South Lakeland District Council,http://opendatacommunities.org/id/district-council/south-lakeland,30/09/2021,Assets and Commercial Services,Central Services,http://opendatacommunities.org/def/concept/finance/sercop/objective/102,ADECCO UK LIMITED,00593232,13-09-2021,0000169877,314.79,0,cleaning services,261400,HR Temporary & Agency Staff
South Lakeland District Council,http://opendatacommunities.org/id/district-council/south-lakeland,30/09/2021,Assets and Commercial Services,Central Services,http://opendatacommunities.org/def/concept/finance/sercop/objective/102,ADECCO UK LIMITED,00593232,16-09-2021,0000170052,314.79,0,cleaning services,261400,HR Temporary & Agency Staff
South Lakeland District Council,http://opendatacommunities.org/id/district-council/south-lakeland,30/09/2021,Assets and Commercial Services,Central Services,http://opendatacommunities.org/def/concept/finance/sercop/objective/102,ADECCO UK LIMITED,00593232,22-09-2021,0000170224,314.79,0,cleaning services,261400,HR Temporary & Agency Staff
South Lakeland District Council,http://opendatacommunities.org/id/district-council/south-lakeland,30/09/2021,Business Support Community Services,Cultural Environmental Regulatory & Planning Services,http://opendatacommunities.org/def/concept/finance/sercop/objective/104,ARCO LIMITED,00133804,27-09-2021,0000170391,317.78,0,Cleaning materials,141100,Clothing Protective
South Lakeland District Council,http://opendatacommunities.org/id/district-council/south-lakeland,30/09/2021,Human Resources,Central Services,http://opendatacommunities.org/def/concept/finance/sercop/objective/102,EMPLOYMENT PAGES LTD,07363099,29-09-2021,0000170307,321.3,0,Legal Apprentice Advertisement -,261400,HR Temporary & Agency Staff
South Lakeland District Council,http://opendatacommunities.org/id/district-council/south-lakeland,30/09/2021,Business Support Community Services,Cultural Environmental Regulatory & Planning Services,http://opendatacommunities.org/def/concept/finance/sercop/objective/104,Thomas Hardie Commercials Ltd,01879630,22-09-2021,0000170324,323.5,0,Parts,381500,Vehicle Mgt Parts
South Lakeland District Council,http://opendatacommunities.org/id/district-council/south-lakeland,30/09/2021,Case Management Account Mgmt,Cultural Environmental Regulatory & Planning Services,http://opendatacommunities.org/def/concept/finance/sercop/objective/104,BRIAN ARMISTEAD LTD T/A SINKFALL RECYCLI,04133280,16-09-2021,0000170040,325,0,order for 2 skips from Sinkfall,391110,Construction Buildings Construction
South Lakeland District Council,http://opendatacommunities.org/id/district-council/south-lakeland,30/09/2021,Business Support Community Services,Cultural Environmental Regulatory & Planning Services,http://opendatacommunities.org/def/concept/finance/sercop/objective/104,LANCASHIRE DAF,,16-09-2021,0000170171,325,0,Parts,381400,Vehicle Mgt Maintenance
South Lakeland District Council,http://opendatacommunities.org/id/district-council/south-lakeland,30/09/2021,Business Support Community Services,Cultural Environmental Regulatory & Planning Services,http://opendatacommunities.org/def/concept/finance/sercop/objective/104,DENNIS EAGLE LTD,03794455,01-09-2021,0000169705,327.16,0,Parts,381300,Vehicle Mgt Industrial
South Lakeland District Council,http://opendatacommunities.org/id/district-council/south-lakeland,30/09/2021,Business Support Community Services,Cultural Environmental Regulatory & Planning Services,http://opendatacommunities.org/def/concept/finance/sercop/objective/104,LANCASHIRE DAF,,16-09-2021,0000170073,327.19,0,Parts,381400,Vehicle Mgt Maintenance
South Lakeland District Council,http://opendatacommunities.org/id/district-council/south-lakeland,30/09/2021,ICT Group,Central Services,http://opendatacommunities.org/def/concept/finance/sercop/objective/102,PROBRAND LTD,02653446,20-09-2021,0000169965,328.9,0,Logitech MK270 combo set,271600,ICT Software Customised & Bespoke
South Lakeland District Council,http://opendatacommunities.org/id/district-council/south-lakeland,30/09/2021,Business Support Community Services,Cultural Environmental Regulatory & Planning Services,http://opendatacommunities.org/def/concept/finance/sercop/objective/104,PYE MOTORS LIMITED,00204727,22-09-2021,0000170309,332.37,0,Mirror,381400,Vehicle Mgt Maintenance
South Lakeland District Council,http://opendatacommunities.org/id/district-council/south-lakeland,30/09/2021,Case Management People,Cultural Environmental Regulatory & Planning Services,http://opendatacommunities.org/def/concept/finance/sercop/objective/104,SOUTH LAKES HOUSING,IP031419,01-09-2021,0000169475,337.1,0,Town View Fields Management Fee,191700,Facilities Property Management
South Lakeland District Council,http://opendatacommunities.org/id/district-council/south-lakeland,30/09/2021,Case Management Regulatory,Central Services,http://opendatacommunities.org/def/concept/finance/sercop/objective/102,The Oyster Partnership,05020374,16-09-2021,0000169238,340,0,Contract Worker,261300,HR Recruitment & Assessment
South Lakeland District Council,http://opendatacommunities.org/id/district-council/south-lakeland,30/09/2021,Support Services,Central Services,http://opendatacommunities.org/def/concept/finance/sercop/objective/102,NEWSQUEST MEDIA GROUP LTD,03102566,13-09-2021,0000169884,343.92,0,Public Notice in Ulverston Mail for,191000,Facilities Advertising
South Lakeland District Council,http://opendatacommunities.org/id/district-council/south-lakeland,30/09/2021,Case Management Regulatory,Cultural Environmental Regulatory & Planning Services,http://opendatacommunities.org/def/concept/finance/sercop/objective/104,A G & P Jackson,,22-09-2021,0000170305,350,0,Viability assessments,150000,Consultancy
South Lakeland District Council,http://opendatacommunities.org/id/district-council/south-lakeland,30/09/2021,Case Management Account Mgmt,Central Services,http://opendatacommunities.org/def/concept/finance/sercop/objective/102,ADECCO UK LIMITED,00593232,16-09-2021,0000169874,363.34,0,Agency Workers,261400,HR Temporary & Agency Staff
South Lakeland District Council,http://opendatacommunities.org/id/district-council/south-lakeland,30/09/2021,Case Management Account Mgmt,Central Services,http://opendatacommunities.org/def/concept/finance/sercop/objective/102,ADECCO UK LIMITED,00593232,22-09-2021,0000170221,367.43,0,Agency Workers,261400,HR Temporary & Agency Staff
South Lakeland District Council,http://opendatacommunities.org/id/district-council/south-lakeland,30/09/2021,Case Management People,Housing Services,http://opendatacommunities.org/def/concept/finance/sercop/objective/108,Landlord,,22-09-2021,0000170320,370,0,Flat,202000,Financial Services Rents
South Lakeland District Council,http://opendatacommunities.org/id/district-council/south-lakeland,30/09/2021,Support Services,Central Services,http://opendatacommunities.org/def/concept/finance/sercop/objective/102,VENN GROUP RECRUITMENT SOLUTIONS,,16-09-2021,0000170055,371.25,0,Time Sheets,261400,HR Temporary & Agency Staff
South Lakeland District Council,http://opendatacommunities.org/id/district-council/south-lakeland,30/09/2021,Business Support Community Services,Cultural Environmental Regulatory & Planning Services,http://opendatacommunities.org/def/concept/finance/sercop/objective/104,GREENCHEM SOLUTIONS LTD,05175801,16-09-2021,0000170077,375,0,AdBlue,189999,Environmental Services Not Elsewhere Cla
South Lakeland District Council,http://opendatacommunities.org/id/district-council/south-lakeland,30/09/2021,Case Management Account Mgmt,Other Items,,ADECCO UK LIMITED,00593232,22-09-2021,0000170220,390.6,0,Agency Staff for Business Grants Support,261400,HR Temporary & Agency Staff
South Lakeland District Council,http://opendatacommunities.org/id/district-council/south-lakeland,30/09/2021,Assets and Commercial Services,Central Services,http://opendatacommunities.org/def/concept/finance/sercop/objective/102,Cronshaw Electrical Ltd,04353019,01-09-2021,0000169666,391.8,0,100 Paxton fobs,101100,Building Electrical
South Lakeland District Council,http://opendatacommunities.org/id/district-council/south-lakeland,30/09/2021,Support Services,Central Services,http://opendatacommunities.org/def/concept/finance/sercop/objective/102,Windermere & Bowness Town Council,,01-09-2021,0000169702,400,0,Locality donation to fund sIngle,908000,Public Bodies Council support services
South Lakeland District Council,http://opendatacommunities.org/id/district-council/south-lakeland,30/09/2021,Case Management People,Housing Services,http://opendatacommunities.org/def/concept/finance/sercop/objective/108,D Clark Properties,,06-09-2021,0000169774,400,0,"Accommodation, The Lodge",250000,Housing
South Lakeland District Council,http://opendatacommunities.org/id/district-council/south-lakeland,30/09/2021,Case Management People,Housing Services,http://opendatacommunities.org/def/concept/finance/sercop/objective/108,D Clark Properties,,22-09-2021,0000170318,400,0,"Accommodation, The Lodge",250000,Housing
South Lakeland District Council,http://opendatacommunities.org/id/district-council/south-lakeland,30/09/2021,Case Management People,Housing Services,http://opendatacommunities.org/def/concept/finance/sercop/objective/108,D Clark Properties,,22-09-2021,0000170331,400,0,Accommodation The Lodge,250000,Housing
South Lakeland District Council,http://opendatacommunities.org/id/district-council/south-lakeland,30/09/2021,Case Management People,Housing Services,http://opendatacommunities.org/def/concept/finance/sercop/objective/108,SOUTH LAKES HOUSING RENT A/C,,01-09-2021,0000169769,401.39,0,Rent in advance ,191700,Facilities Property Management
South Lakeland District Council,http://opendatacommunities.org/id/district-council/south-lakeland,30/09/2021,Support Services,Non-Service Payments,,Bravo Benefits Ltd,06758298,13-09-2021,0000169969,408,0,Chidl Care Vouchers 20/21,202100,Financial Services Subscriptions
South Lakeland District Council,http://opendatacommunities.org/id/district-council/south-lakeland,30/09/2021,Lake Wardens,Cultural Environmental Regulatory & Planning Services,http://opendatacommunities.org/def/concept/finance/sercop/objective/104,Harmony EPOS Solutions Ltd,9266671,06-09-2021,0000169646,410,0,EPOS Hardware Contract for touch screen,111100,Catering Equipment & Utensils
South Lakeland District Council,http://opendatacommunities.org/id/district-council/south-lakeland,30/09/2021,Business Support Community Services,Cultural Environmental Regulatory & Planning Services,http://opendatacommunities.org/def/concept/finance/sercop/objective/104,LANCASHIRE DAF,,06-09-2021,0000169727,415.12,0,Parts,381400,Vehicle Mgt Maintenance
South Lakeland District Council,http://opendatacommunities.org/id/district-council/south-lakeland,30/09/2021,Business Support Community Services,Cultural Environmental Regulatory & Planning Services,http://opendatacommunities.org/def/concept/finance/sercop/objective/104,REEN Technologies Limited,9347391,13-09-2021,0000169857,416,0,Subscriptions,261517,ICT-Consultancy
South Lakeland District Council,http://opendatacommunities.org/id/district-council/south-lakeland,30/09/2021,Business Support Community Services,Cultural Environmental Regulatory & Planning Services,http://opendatacommunities.org/def/concept/finance/sercop/objective/104,GREENCHEM SOLUTIONS LTD,05175801,06-09-2021,0000169649,417,0,AdBlue,189999,Environmental Services Not Elsewhere Cla
South Lakeland District Council,http://opendatacommunities.org/id/district-council/south-lakeland,30/09/2021,Business Support Community Services,Cultural Environmental Regulatory & Planning Services,http://opendatacommunities.org/def/concept/finance/sercop/objective/104,LANCASHIRE DAF,,06-09-2021,0000169653,418.57,0,Parts,381400,Vehicle Mgt Maintenance
South Lakeland District Council,http://opendatacommunities.org/id/district-council/south-lakeland,30/09/2021,Business Support Community Services,Cultural Environmental Regulatory & Planning Services,http://opendatacommunities.org/def/concept/finance/sercop/objective/104,ADECCO UK LIMITED,00593232,16-09-2021,0000170051,419.9,0,Agency staff 2021/22,261400,HR Temporary & Agency Staff
South Lakeland District Council,http://opendatacommunities.org/id/district-council/south-lakeland,30/09/2021,Business Support Community Services,Cultural Environmental Regulatory & Planning Services,http://opendatacommunities.org/def/concept/finance/sercop/objective/104,ADECCO UK LIMITED,00593232,16-09-2021,0000169876,424.32,0,Agency staff 2021/22,261400,HR Temporary & Agency Staff
South Lakeland District Council,http://opendatacommunities.org/id/district-council/south-lakeland,30/09/2021,Westmorland Centre Parking Office,Highways & Transport Services,http://opendatacommunities.org/def/concept/finance/sercop/objective/107,Security Plus   Limited,,22-09-2021,0000170213,425,0,Bulk cash collection April 2021-March,209999,Financial Services Not Elsewhere Classif
South Lakeland District Council,http://opendatacommunities.org/id/district-council/south-lakeland,30/09/2021,Case Management Regulatory,Cultural Environmental Regulatory & Planning Services,http://opendatacommunities.org/def/concept/finance/sercop/objective/104,North West Equine Vets Ltd,09731215,16-09-2021,0000170113,429.82,0,Invoice 152081,180040,Env. Service- Veterinary Services
South Lakeland District Council,http://opendatacommunities.org/id/district-council/south-lakeland,30/09/2021,Support Services,Cultural Environmental Regulatory & Planning Services,http://opendatacommunities.org/def/concept/finance/sercop/objective/104,WiFi Spark Ltd,,27-09-2021,0000170336,442.58,0,Kendal Wifi Maintenance,271800,ICT Telecommunications Mobile
South Lakeland District Council,http://opendatacommunities.org/id/district-council/south-lakeland,30/09/2021,Business Support Community Services,Cultural Environmental Regulatory & Planning Services,http://opendatacommunities.org/def/concept/finance/sercop/objective/104,HAKO MACHINES LIMITED,01414225,29-09-2021,0000170443,444.23,0,Parts,131000,Cleaning & Janitorial Cleaning Materials
South Lakeland District Council,http://opendatacommunities.org/id/district-council/south-lakeland,30/09/2021,Case Management Account Mgmt,Central Services,http://opendatacommunities.org/def/concept/finance/sercop/objective/102,MORGAN HUNT UK LIMITED,04349535,06-09-2021,0000169692,446.24,0,Senior Revenues Officer,269999,HR Not Elsewhere Classified
South Lakeland District Council,http://opendatacommunities.org/id/district-council/south-lakeland,30/09/2021,Case Management Regulatory,Central Services,http://opendatacommunities.org/def/concept/finance/sercop/objective/102,CUMBRIA COUNTY COUNCIL,,06-09-2021,0000169594,450,0,LOCAL LAND CHARGE SEARCH ENQUIRIES,908000,Public Bodies Council support services
South Lakeland District Council,http://opendatacommunities.org/id/district-council/south-lakeland,30/09/2021,Business Support Community Services,Cultural Environmental Regulatory & Planning Services,http://opendatacommunities.org/def/concept/finance/sercop/objective/104,ELIS UK LTD,00228604,13-09-2021,0000169861,450.44,0,Workwear hire 01/04/21 - 31/03/22,161000,Domestic Goods Commercial
South Lakeland District Council,http://opendatacommunities.org/id/district-council/south-lakeland,30/09/2021,ICT Group,Central Services,http://opendatacommunities.org/def/concept/finance/sercop/objective/102,Insight Direct (Uk) Ltd,2579852,20-09-2021,0000170183,453.36,0,Jabra STEALTH UC - headset,271200,ICT Hardware
South Lakeland District Council,http://opendatacommunities.org/id/district-council/south-lakeland,30/09/2021,Case Management Account Mgmt,Other Items,,ADECCO UK LIMITED,00593232,08-09-2021,0000169700,455.7,0,Agency Staff for Business Grants Support,261400,HR Temporary & Agency Staff
South Lakeland District Council,http://opendatacommunities.org/id/district-council/south-lakeland,30/09/2021,Case Management Account Mgmt,Central Services,http://opendatacommunities.org/def/concept/finance/sercop/objective/102,Quantified Tree Risk Assessment Ltd,05255873,06-09-2021,0000169763,460,0,Provision of QTRA Training for Diane,241600,Horticultural Trees & Shrubs
South Lakeland District Council,http://opendatacommunities.org/id/district-council/south-lakeland,30/09/2021,Case Management Regulatory,Cultural Environmental Regulatory & Planning Services,http://opendatacommunities.org/def/concept/finance/sercop/objective/104,A G & P Jackson,,06-09-2021,0000169650,462,0,Viability assessments,150000,Consultancy
South Lakeland District Council,http://opendatacommunities.org/id/district-council/south-lakeland,30/09/2021,Case Management,Central Services,http://opendatacommunities.org/def/concept/finance/sercop/objective/102,SHRED-IT,04047194,13-09-2021,0000169983,463.84,0,Confidential Waste Service 2021/2022,279999,ICT Not Elsewhere Classified
South Lakeland District Council,http://opendatacommunities.org/id/district-council/south-lakeland,30/09/2021,Case Management People,Housing Services,http://opendatacommunities.org/def/concept/finance/sercop/objective/108,G B BURROW & SON,,16-09-2021,0000170130,470,0,Removals Milnthorpe to Windermere,192300,Facilities Storage
South Lakeland District Council,http://opendatacommunities.org/id/district-council/south-lakeland,30/09/2021,Support Services,Central Services,http://opendatacommunities.org/def/concept/finance/sercop/objective/102,NEWSQUEST MEDIA GROUP LTD,03102566,29-09-2021,0000170534,471.24,0,Public Notice in Westmorland Gazette,191000,Facilities Advertising
South Lakeland District Council,http://opendatacommunities.org/id/district-council/south-lakeland,30/09/2021,Case Management Account Mgmt,Cultural Environmental Regulatory & Planning Services,http://opendatacommunities.org/def/concept/finance/sercop/objective/104,CONTINENTAL LANDSCAPES LTD,2108452,20-09-2021,0000170049,472.89,0,Grounds maintenance extra works for,391310,Construction Open Spaces Construction
South Lakeland District Council,http://opendatacommunities.org/id/district-council/south-lakeland,30/09/2021,Case Management Regulatory,Central Services,http://opendatacommunities.org/def/concept/finance/sercop/objective/102,CUMBRIA COUNTY COUNCIL,,29-09-2021,0000170439,475,0,LOCAL LAND CHARGE SEARCH ENQUIRIES,908000,Public Bodies Council support services
South Lakeland District Council,http://opendatacommunities.org/id/district-council/south-lakeland,30/09/2021,Lake Wardens,Other Items,,THOMAS GRAHAM & SONS LTD,00656879,06-09-2021,0000169796,476.48,0,20 x Packs of Jangro Jumbo Toilet Rolls,101400,Building General Materials
South Lakeland District Council,http://opendatacommunities.org/id/district-council/south-lakeland,30/09/2021,Case Management Account Mgmt,Cultural Environmental Regulatory & Planning Services,http://opendatacommunities.org/def/concept/finance/sercop/objective/104,Greaves Tree Services,,27-09-2021,0000170376,480,0,Kirkby in Furness churchyard call out,241600,Horticultural Trees & Shrubs
South Lakeland District Council,http://opendatacommunities.org/id/district-council/south-lakeland,30/09/2021,Support Services,Central Services,http://opendatacommunities.org/def/concept/finance/sercop/objective/102,NEWSQUEST MEDIA GROUP LTD,03102566,29-09-2021,0000170532,487.22,0,Public Notice in Ulverston Mail for,191000,Facilities Advertising
South Lakeland District Council,http://opendatacommunities.org/id/district-council/south-lakeland,30/09/2021,Case Management People,Housing Services,http://opendatacommunities.org/def/concept/finance/sercop/objective/108,Emma Beresford,,27-09-2021,0000170381,487.5,0,Rent in advance and deposit,250000,Housing
South Lakeland District Council,http://opendatacommunities.org/id/district-council/south-lakeland,30/09/2021,Case Management Regulatory,Cultural Environmental Regulatory & Planning Services,http://opendatacommunities.org/def/concept/finance/sercop/objective/104,North West Equine Vets Ltd,09731215,16-09-2021,0000170094,490.52,0,Invoice 150965 - Bigland Hall,180040,Env. Service- Veterinary Services
South Lakeland District Council,http://opendatacommunities.org/id/district-council/south-lakeland,30/09/2021,Support Services,Central Services,http://opendatacommunities.org/def/concept/finance/sercop/objective/102,ARNSIDE PARISH COUNCIL,,06-09-2021,0000169746,500,0,Locality donation to fund Arnside Wild,908000,Public Bodies Council support services
South Lakeland District Council,http://opendatacommunities.org/id/district-council/south-lakeland,30/09/2021,Assets and Commercial Services,Central Services,http://opendatacommunities.org/def/concept/finance/sercop/objective/102,Kinto Uk Limited,00837940,06-09-2021,0000169786,501.77,0,PO to cover 2x maintenance team,381000,Vehicle Mgt Commercial
South Lakeland District Council,http://opendatacommunities.org/id/district-council/south-lakeland,30/09/2021,Assets and Commercial Services,Central Services,http://opendatacommunities.org/def/concept/finance/sercop/objective/102,Kinto Uk Limited,00837940,06-09-2021,0000169787,501.77,0,PO to cover 2x maintenance team,381000,Vehicle Mgt Commercial
South Lakeland District Council,http://opendatacommunities.org/id/district-council/south-lakeland,30/09/2021,Assets and Commercial Services,Central Services,http://opendatacommunities.org/def/concept/finance/sercop/objective/102,Kinto Uk Limited,00837940,06-09-2021,0000169788,501.77,0,PO to cover 2x maintenance team,381000,Vehicle Mgt Commercial
South Lakeland District Council,http://opendatacommunities.org/id/district-council/south-lakeland,30/09/2021,Assets and Commercial Services,Central Services,http://opendatacommunities.org/def/concept/finance/sercop/objective/102,Kinto Uk Limited,00837940,06-09-2021,0000169789,501.77,0,PO to cover 2x maintenance team,381000,Vehicle Mgt Commercial
South Lakeland District Council,http://opendatacommunities.org/id/district-council/south-lakeland,30/09/2021,Case Management Regulatory,Cultural Environmental Regulatory & Planning Services,http://opendatacommunities.org/def/concept/finance/sercop/objective/104,Air Quality Data Management,,13-09-2021,0000169881,515,0,Data Collection and Ratification,181400,Environment Monitoring
South Lakeland District Council,http://opendatacommunities.org/id/district-council/south-lakeland,30/09/2021,Business Support Community Services,Cultural Environmental Regulatory & Planning Services,http://opendatacommunities.org/def/concept/finance/sercop/objective/104,INNOVATIVE SAFETY SYSTEMS LTD,06875015,27-09-2021,0000170393,516,0,Parts,192200,Facilities Security
South Lakeland District Council,http://opendatacommunities.org/id/district-council/south-lakeland,30/09/2021,ICT Group,Central Services,http://opendatacommunities.org/def/concept/finance/sercop/objective/102,DAISY COMMUNICATIONS LTD,04145329,22-09-2021,0000170284,517.99,0,"Daisy line rental costs, covers 1/4/21",271700,ICT Telecommunications Fixed
South Lakeland District Council,http://opendatacommunities.org/id/district-council/south-lakeland,30/09/2021,Support Services,Central Services,http://opendatacommunities.org/def/concept/finance/sercop/objective/102,LLG Legal Training,,13-09-2021,0000170014,523,0,Online - Section 106 Agreements,261520,Human Resources Training
South Lakeland District Council,http://opendatacommunities.org/id/district-council/south-lakeland,30/09/2021,Kendal Town Hall,Cultural Environmental Regulatory & Planning Services,http://opendatacommunities.org/def/concept/finance/sercop/objective/104,THE SIGN MAN,05748839,16-09-2021,0000169636,525,0,Brass engraved room signs for Kendal,102400,Building Signage
South Lakeland District Council,http://opendatacommunities.org/id/district-council/south-lakeland,30/09/2021,Case Management Regulatory,Central Services,http://opendatacommunities.org/def/concept/finance/sercop/objective/102,CUMBRIA COUNTY COUNCIL,,22-09-2021,0000170000,525,0,LOCAL LAND CHARGE SEARCH ENQUIRIES,908000,Public Bodies Council support services
South Lakeland District Council,http://opendatacommunities.org/id/district-council/south-lakeland,30/09/2021,Lake Wardens,Cultural Environmental Regulatory & Planning Services,http://opendatacommunities.org/def/concept/finance/sercop/objective/104,CUMBRIA WASTE RECYCLING LTD,03162439,16-09-2021,0000170111,551.65,0,Emptying of Refuse Wheelie Bins,182012,Environment Waste Management Recycling
South Lakeland District Council,http://opendatacommunities.org/id/district-council/south-lakeland,30/09/2021,Support Services,Central Services,http://opendatacommunities.org/def/concept/finance/sercop/objective/102,ABSOLUTE DIGITAL PRINT LTD,04705547,22-09-2021,0000169661,560,0,Childrens Artwork: 8 x A0 (841mm x,191600,Facilities Printing
South Lakeland District Council,http://opendatacommunities.org/id/district-council/south-lakeland,30/09/2021,Business Support Community Services,Cultural Environmental Regulatory & Planning Services,http://opendatacommunities.org/def/concept/finance/sercop/objective/104,ADECCO UK LIMITED,00593232,08-09-2021,0000169863,574.6,0,Agency staff 2021/22,261400,HR Temporary & Agency Staff
South Lakeland District Council,http://opendatacommunities.org/id/district-council/south-lakeland,30/09/2021,Case Management Account Mgmt,Central Services,http://opendatacommunities.org/def/concept/finance/sercop/objective/102,ALLPAY.NET LTD (NCR),6871069,01-09-2021,0000169849,578.27,0,2021-22 Internet Payment / bank charges,209999,Financial Services Not Elsewhere Classif
South Lakeland District Council,http://opendatacommunities.org/id/district-council/south-lakeland,30/09/2021,Business Support Community Services,Cultural Environmental Regulatory & Planning Services,http://opendatacommunities.org/def/concept/finance/sercop/objective/104,HAKO MACHINES LIMITED,01414225,13-09-2021,0000169852,587.5,0,Parts,131000,Cleaning & Janitorial Cleaning Materials
South Lakeland District Council,http://opendatacommunities.org/id/district-council/south-lakeland,30/09/2021,Business Support Community Services,Cultural Environmental Regulatory & Planning Services,http://opendatacommunities.org/def/concept/finance/sercop/objective/104,HAKO MACHINES LIMITED,01414225,22-09-2021,0000170313,587.5,0,Parts,131000,Cleaning & Janitorial Cleaning Materials
South Lakeland District Council,http://opendatacommunities.org/id/district-council/south-lakeland,30/09/2021,Business Support Community Services,Cultural Environmental Regulatory & Planning Services,http://opendatacommunities.org/def/concept/finance/sercop/objective/104,ADECCO UK LIMITED,00593232,22-09-2021,0000170223,587.86,0,Agency staff 2021/22,261400,HR Temporary & Agency Staff
South Lakeland District Council,http://opendatacommunities.org/id/district-council/south-lakeland,30/09/2021,Case Management People,Housing Services,http://opendatacommunities.org/def/concept/finance/sercop/objective/108,STEELES REMOVALS LTD,03082686,13-09-2021,0000169952,603,0,Removal into storage,191900,Facilities Removals
South Lakeland District Council,http://opendatacommunities.org/id/district-council/south-lakeland,30/09/2021,Case Management Account Mgmt,Central Services,http://opendatacommunities.org/def/concept/finance/sercop/objective/102,ADECCO UK LIMITED,00593232,16-09-2021,0000169873,604.21,0,Agency Workers,261400,HR Temporary & Agency Staff
South Lakeland District Council,http://opendatacommunities.org/id/district-council/south-lakeland,30/09/2021,Case Management Regulatory,Central Services,http://opendatacommunities.org/def/concept/finance/sercop/objective/102,The Oyster Partnership,05020374,16-09-2021,0000170029,608,0,Agency Officer to cover assessment of,261300,HR Recruitment & Assessment
South Lakeland District Council,http://opendatacommunities.org/id/district-council/south-lakeland,30/09/2021,Case Management Regulatory,Central Services,http://opendatacommunities.org/def/concept/finance/sercop/objective/102,The Oyster Partnership,05020374,16-09-2021,0000170030,608,0,Agency Officer to cover assessment of,261300,HR Recruitment & Assessment
South Lakeland District Council,http://opendatacommunities.org/id/district-council/south-lakeland,30/09/2021,Westmorland Centre Parking Office,Central Services,http://opendatacommunities.org/def/concept/finance/sercop/objective/102,Blue Sky Design Ineriors Limited,05645649,01-09-2021,0000169762,610,0,Supply of fireplace bars for hearth,159999,Consultancy Not Elsewhere Classified
South Lakeland District Council,http://opendatacommunities.org/id/district-council/south-lakeland,30/09/2021,Case Management People,Housing Services,http://opendatacommunities.org/def/concept/finance/sercop/objective/108,Castles and Coasts Housing Association,,13-09-2021,0000169948,615.88,0,Rent in advance 44 West View Walk,250000,Housing
South Lakeland District Council,http://opendatacommunities.org/id/district-council/south-lakeland,30/09/2021,Case Management Account Mgmt,Central Services,http://opendatacommunities.org/def/concept/finance/sercop/objective/102,MORGAN HUNT UK LIMITED,04349535,06-09-2021,0000169693,620.55,0,Senior Revenues Officer,269999,HR Not Elsewhere Classified
South Lakeland District Council,http://opendatacommunities.org/id/district-council/south-lakeland,30/09/2021,Case Management,Central Services,http://opendatacommunities.org/def/concept/finance/sercop/objective/102,Inform CPI Ltd,,27-09-2021,0000170419,632.5,0,Analyse Local RV finder,271600,ICT Software Customised & Bespoke
South Lakeland District Council,http://opendatacommunities.org/id/district-council/south-lakeland,30/09/2021,Business Support Community Services,Cultural Environmental Regulatory & Planning Services,http://opendatacommunities.org/def/concept/finance/sercop/objective/104,HAKO MACHINES LIMITED,01414225,22-09-2021,0000170312,634.44,0,Parts,131000,Cleaning & Janitorial Cleaning Materials
South Lakeland District Council,http://opendatacommunities.org/id/district-council/south-lakeland,30/09/2021,Business Support Community Services,Cultural Environmental Regulatory & Planning Services,http://opendatacommunities.org/def/concept/finance/sercop/objective/104,TAYLOR ENGINEERING & FABRICATIONS LTD,04989359,16-09-2021,0000170140,649.84,0,Parts,391200,Construction Engineering
South Lakeland District Council,http://opendatacommunities.org/id/district-council/south-lakeland,30/09/2021,Case Management Regulatory,Cultural Environmental Regulatory & Planning Services,http://opendatacommunities.org/def/concept/finance/sercop/objective/104,MOGO UK,03091301,08-09-2021,0000169525,650.9,0,Hackney Carriage Licence Plate Set,281400,Legal Services Specialist Support
South Lakeland District Council,http://opendatacommunities.org/id/district-council/south-lakeland,30/09/2021,Case Management Regulatory,Central Services,http://opendatacommunities.org/def/concept/finance/sercop/objective/102,The Oyster Partnership,05020374,16-09-2021,0000169236,670,0,Contract Worker,261300,HR Recruitment & Assessment
South Lakeland District Council,http://opendatacommunities.org/id/district-council/south-lakeland,30/09/2021,Case Management People,Central Services,http://opendatacommunities.org/def/concept/finance/sercop/objective/102,Eden Brown Limited,,16-09-2021,0000170044,675,0,Payment ,261400,HR Temporary & Agency Staff
South Lakeland District Council,http://opendatacommunities.org/id/district-council/south-lakeland,30/09/2021,Case Management People,Cultural Environmental Regulatory & Planning Services,http://opendatacommunities.org/def/concept/finance/sercop/objective/104,SOUTH LAKES HOUSING,IP031419,01-09-2021,0000169475,689.26,0,Town View Fields Management Fee,191700,Facilities Property Management
South Lakeland District Council,http://opendatacommunities.org/id/district-council/south-lakeland,30/09/2021,Case Management Account Mgmt,Central Services,http://opendatacommunities.org/def/concept/finance/sercop/objective/102,STANDING STONE DRAWING OFFICE SUPPLIES,05128817,13-09-2021,0000169995,695,0,Plotter service contract,341100,Stationery Sundries
South Lakeland District Council,http://opendatacommunities.org/id/district-council/south-lakeland,30/09/2021,Case Management Account Mgmt,Cultural Environmental Regulatory & Planning Services,http://opendatacommunities.org/def/concept/finance/sercop/objective/104,SOUTH LAKES TREE SURGEONS & LANDSCAPES,05342745,16-09-2021,0000170116,696,0,Briarwood/Brigsteer Rd Kendal,241210,Horticultural Tree Trimming
South Lakeland District Council,http://opendatacommunities.org/id/district-council/south-lakeland,30/09/2021,Case Management People,Housing Services,http://opendatacommunities.org/def/concept/finance/sercop/objective/108,D Clark Properties,,22-09-2021,0000170330,700,0,Accommodation The Lodge,250000,Housing
South Lakeland District Council,http://opendatacommunities.org/id/district-council/south-lakeland,30/09/2021,Case Management Account Mgmt,Cultural Environmental Regulatory & Planning Services,http://opendatacommunities.org/def/concept/finance/sercop/objective/104,GLASDON UK LTD,02160576,16-09-2021,0000170028,702.85,0,Pembridge Picnic Table in black.,109999,Building Not Elsewhere Classified
South Lakeland District Council,http://opendatacommunities.org/id/district-council/south-lakeland,30/09/2021,Assets and Commercial Services,Central Services,http://opendatacommunities.org/def/concept/finance/sercop/objective/102,J S Cleaning Services,,16-09-2021,0000170071,704,0,Contract cleaning staff for North,131010,Cleaning & Janitorial Cleaning Materials
South Lakeland District Council,http://opendatacommunities.org/id/district-council/south-lakeland,30/09/2021,Business Support Community Services,Cultural Environmental Regulatory & Planning Services,http://opendatacommunities.org/def/concept/finance/sercop/objective/104,LANCASHIRE DAF,,22-09-2021,0000170303,745.43,0,Parts,381400,Vehicle Mgt Maintenance
South Lakeland District Council,http://opendatacommunities.org/id/district-council/south-lakeland,30/09/2021,Case Management Account Mgmt,Central Services,http://opendatacommunities.org/def/concept/finance/sercop/objective/102,CFH Docmail Ltd,01716891,29-09-2021,0000170616,753.07,0,Annual billing Revenues Postage Whistl,300000,Mail Services
South Lakeland District Council,http://opendatacommunities.org/id/district-council/south-lakeland,30/09/2021,Assets and Commercial Services,Central Services,http://opendatacommunities.org/def/concept/finance/sercop/objective/102,Virtual College Ltd,,27-09-2021,0000170399,760,0,PO to cover 10 licences for,261520,Human Resources Training
South Lakeland District Council,http://opendatacommunities.org/id/district-council/south-lakeland,30/09/2021,Business Support Community Services,Cultural Environmental Regulatory & Planning Services,http://opendatacommunities.org/def/concept/finance/sercop/objective/104,TAYLOR ENGINEERING & FABRICATIONS LTD,04989359,16-09-2021,0000170169,762.92,0,Parts,391200,Construction Engineering
South Lakeland District Council,http://opendatacommunities.org/id/district-council/south-lakeland,30/09/2021,Case Management Account Mgmt,Cultural Environmental Regulatory & Planning Services,http://opendatacommunities.org/def/concept/finance/sercop/objective/104,EXPERIAN LTD,00653331,27-09-2021,0000170341,779.25,0,Goad Plan License renewal Local Plan,209999,Financial Services Not Elsewhere Classif
South Lakeland District Council,http://opendatacommunities.org/id/district-council/south-lakeland,30/09/2021,Case Management People,Housing Services,http://opendatacommunities.org/def/concept/finance/sercop/objective/108,JJM Properties,,22-09-2021,0000170317,780,0,Rent in advance and deposit,250010,Housing Letting Agents
South Lakeland District Council,http://opendatacommunities.org/id/district-council/south-lakeland,30/09/2021,Business Support Community Services,Cultural Environmental Regulatory & Planning Services,http://opendatacommunities.org/def/concept/finance/sercop/objective/104,FURNESS FLUID POWER LTD,05675728,29-09-2021,0000170441,780.37,0,Parts,260000,HR
South Lakeland District Council,http://opendatacommunities.org/id/district-council/south-lakeland,30/09/2021,Business Support Community Services,Cultural Environmental Regulatory & Planning Services,http://opendatacommunities.org/def/concept/finance/sercop/objective/104,TPS Preston,,13-09-2021,0000169960,795.63,0,Parts,381400,Vehicle Mgt Maintenance
South Lakeland District Council,http://opendatacommunities.org/id/district-council/south-lakeland,30/09/2021,Assets and Commercial Services,Central Services,http://opendatacommunities.org/def/concept/finance/sercop/objective/102,Leigh's Removals,,06-09-2021,0000169764,800,0,removal of furniture and storage of,250000,Housing
South Lakeland District Council,http://opendatacommunities.org/id/district-council/south-lakeland,30/09/2021,Business Support Community Services,Cultural Environmental Regulatory & Planning Services,http://opendatacommunities.org/def/concept/finance/sercop/objective/104,LANCASHIRE DAF,,13-09-2021,0000169950,819.94,0,Parts,381400,Vehicle Mgt Maintenance
South Lakeland District Council,http://opendatacommunities.org/id/district-council/south-lakeland,30/09/2021,Case Management People,Housing Services,http://opendatacommunities.org/def/concept/finance/sercop/objective/108,Landlord,,22-09-2021,0000170322,820,0,"Flat,",202000,Financial Services Rents
South Lakeland District Council,http://opendatacommunities.org/id/district-council/south-lakeland,30/09/2021,Lake Wardens,Cultural Environmental Regulatory & Planning Services,http://opendatacommunities.org/def/concept/finance/sercop/objective/104,DEACON PRODUCTS LIMITED,02440650,16-09-2021,0000170012,820.4,0,280 Metres (1 drum) of 10mm Galvanised,100000,Building Construction materials
South Lakeland District Council,http://opendatacommunities.org/id/district-council/south-lakeland,30/09/2021,Case Management Regulatory,Central Services,http://opendatacommunities.org/def/concept/finance/sercop/objective/102,Carrington West,,06-09-2021,0000169564,828,0,Contract Worker,159999,Consultancy Not Elsewhere Classified
South Lakeland District Council,http://opendatacommunities.org/id/district-council/south-lakeland,30/09/2021,Case Management Regulatory,Central Services,http://opendatacommunities.org/def/concept/finance/sercop/objective/102,Carrington West,,16-09-2021,0000170106,828,0, Contract Worker,159999,Consultancy Not Elsewhere Classified
South Lakeland District Council,http://opendatacommunities.org/id/district-council/south-lakeland,30/09/2021,Case Management Regulatory,Central Services,http://opendatacommunities.org/def/concept/finance/sercop/objective/102,Carrington West,,16-09-2021,0000170107,828,0, Contract Worker,159999,Consultancy Not Elsewhere Classified
South Lakeland District Council,http://opendatacommunities.org/id/district-council/south-lakeland,30/09/2021,Case Management Regulatory,Central Services,http://opendatacommunities.org/def/concept/finance/sercop/objective/102,Carrington West,,16-09-2021,0000170108,828,0, Contract Worker,159999,Consultancy Not Elsewhere Classified
South Lakeland District Council,http://opendatacommunities.org/id/district-council/south-lakeland,30/09/2021,Case Management Regulatory,Central Services,http://opendatacommunities.org/def/concept/finance/sercop/objective/102,Carrington West,,22-09-2021,0000170215,828,0,Contract Worker,159999,Consultancy Not Elsewhere Classified
South Lakeland District Council,http://opendatacommunities.org/id/district-council/south-lakeland,30/09/2021,Case Management People,Housing Services,http://opendatacommunities.org/def/concept/finance/sercop/objective/108,Landlord,,22-09-2021,0000170323,839.88,0,Monthly rent for Flat,250000,Housing
South Lakeland District Council,http://opendatacommunities.org/id/district-council/south-lakeland,30/09/2021,Business Support Community Services,Cultural Environmental Regulatory & Planning Services,http://opendatacommunities.org/def/concept/finance/sercop/objective/104,ETS UK LIMITED,02588203,13-09-2021,0000169957,861,0,Repairs,381500,Vehicle Mgt Parts
South Lakeland District Council,http://opendatacommunities.org/id/district-council/south-lakeland,30/09/2021,Case Management Regulatory,SLDC as Agent,,CUMBRIA COUNTY COUNCIL,,13-09-2021,0000169604,864,0,DBS Checks for Taxi Drivers,908000,Public Bodies Council support services
South Lakeland District Council,http://opendatacommunities.org/id/district-council/south-lakeland,30/09/2021,Case Management Account Mgmt,Cultural Environmental Regulatory & Planning Services,http://opendatacommunities.org/def/concept/finance/sercop/objective/104,SOUTH LAKES TREE SURGEONS & LANDSCAPES,05342745,16-09-2021,0000169637,882,0,Briarwood/Brigsteer Rd Kendal,241210,Horticultural Tree Trimming
South Lakeland District Council,http://opendatacommunities.org/id/district-council/south-lakeland,30/09/2021,Support Services,Central Services,http://opendatacommunities.org/def/concept/finance/sercop/objective/102,PAKFLATT (UK) LTD,NI12926,08-09-2021,0000169791,889.8,0,Tactile devices for polling stations,192110,Facilities Room Hire
South Lakeland District Council,http://opendatacommunities.org/id/district-council/south-lakeland,30/09/2021,Case Management Account Mgmt,Highways & Transport Services,http://opendatacommunities.org/def/concept/finance/sercop/objective/107,BRITISH PARKING ASSOCIATION,00979689,13-09-2021,0000169975,906,0,Membership Fees October 2021 to,202100,Financial Services Subscriptions
South Lakeland District Council,http://opendatacommunities.org/id/district-council/south-lakeland,30/09/2021,Case Management Account Mgmt,SLDC as Agent,,PS BUSINESS MATTERS,08147185,16-09-2021,0000170018,916,0,Kendal Futures contract payment,151900,Consultancy Management
South Lakeland District Council,http://opendatacommunities.org/id/district-council/south-lakeland,30/09/2021,Assets and Commercial Services,Housing Services,http://opendatacommunities.org/def/concept/finance/sercop/objective/108,LRM Security Ltd,,06-09-2021,0000169790,930,0,TVH and Hampsfell rolling PO re security,192213,Facilities Security Manned Guarding
South Lakeland District Council,http://opendatacommunities.org/id/district-council/south-lakeland,30/09/2021,Business Support Community Services,Cultural Environmental Regulatory & Planning Services,http://opendatacommunities.org/def/concept/finance/sercop/objective/104,Harry Park Tyres Ltd,08131208,16-09-2021,0000170172,930,0,Tyres,381500,Vehicle Mgt Parts
South Lakeland District Council,http://opendatacommunities.org/id/district-council/south-lakeland,30/09/2021,Case Management Account Mgmt,Cultural Environmental Regulatory & Planning Services,http://opendatacommunities.org/def/concept/finance/sercop/objective/104,SOUTH LAKES TREE SURGEONS & LANDSCAPES,05342745,13-09-2021,0000169944,980,0,"Tree works at Rothay Park, Ambleside",241210,Horticultural Tree Trimming
South Lakeland District Council,http://opendatacommunities.org/id/district-council/south-lakeland,30/09/2021,Case Management Account Mgmt,Cultural Environmental Regulatory & Planning Services,http://opendatacommunities.org/def/concept/finance/sercop/objective/104,SOUTH LAKES TREE SURGEONS & LANDSCAPES,05342745,13-09-2021,0000169945,980,0,October 2020 tree works - Ecclerigg,241210,Horticultural Tree Trimming
South Lakeland District Council,http://opendatacommunities.org/id/district-council/south-lakeland,30/09/2021,Business Support Community Services,Cultural Environmental Regulatory & Planning Services,http://opendatacommunities.org/def/concept/finance/sercop/objective/104,Harry Park Tyres Ltd,08131208,06-09-2021,0000169781,985,0,Tyres,381500,Vehicle Mgt Parts
South Lakeland District Council,http://opendatacommunities.org/id/district-council/south-lakeland,30/09/2021,Westmorland Centre Parking Office,Highways & Transport Services,http://opendatacommunities.org/def/concept/finance/sercop/objective/107,LRM Security Ltd,,06-09-2021,0000169766,990,0,Tp provide 2 x parking/security,192213,Facilities Security Manned Guarding
South Lakeland District Council,http://opendatacommunities.org/id/district-council/south-lakeland,30/09/2021,Business Support Community Services,Cultural Environmental Regulatory & Planning Services,http://opendatacommunities.org/def/concept/finance/sercop/objective/104,KEEP BRITAIN TIDY,03496361,13-09-2021,0000169971,995,0,Essential Membership partnership,181600,Environment Street Cleansing
South Lakeland District Council,http://opendatacommunities.org/id/district-council/south-lakeland,30/09/2021,Support Services,Central Services,http://opendatacommunities.org/def/concept/finance/sercop/objective/102,GRANTS- MISCELLANEOUS,,06-09-2021,0000169729,1000,0,Locality donation to fund Ulverston,201700,Financial Services Grants
South Lakeland District Council,http://opendatacommunities.org/id/district-council/south-lakeland,30/09/2021,Support Services,Central Services,http://opendatacommunities.org/def/concept/finance/sercop/objective/102,GRANTS- MISCELLANEOUS,,20-09-2021,0000170216,1000,0,Locality donation to fund upgrade of,201700,Financial Services Grants
South Lakeland District Council,http://opendatacommunities.org/id/district-council/south-lakeland,30/09/2021,Case Management,Central Services,http://opendatacommunities.org/def/concept/finance/sercop/objective/102,MORGAN HUNT UK LIMITED,04349535,16-09-2021,0000170033,1014,0,Steve Sherstone (Revenues Contractor),269999,HR Not Elsewhere Classified
South Lakeland District Council,http://opendatacommunities.org/id/district-council/south-lakeland,30/09/2021,Case Management,Central Services,http://opendatacommunities.org/def/concept/finance/sercop/objective/102,MORGAN HUNT UK LIMITED,04349535,29-09-2021,0000170401,1064.7,0,(Revenues Contractor),269999,HR Not Elsewhere Classified
South Lakeland District Council,http://opendatacommunities.org/id/district-council/south-lakeland,30/09/2021,Business Support Community Services,Cultural Environmental Regulatory & Planning Services,http://opendatacommunities.org/def/concept/finance/sercop/objective/104,CUMBRIA WASTE RECYCLING LTD,03162439,16-09-2021,0000170127,1092,0,Skip emptying,182012,Environment Waste Management Recycling
South Lakeland District Council,http://opendatacommunities.org/id/district-council/south-lakeland,30/09/2021,Case Management Account Mgmt,Cultural Environmental Regulatory & Planning Services,http://opendatacommunities.org/def/concept/finance/sercop/objective/104,SOUTH LAKES TREE SURGEONS & LANDSCAPES,05342745,16-09-2021,0000170115,1100,0,"Broad Ing, Kendal",241210,Horticultural Tree Trimming
South Lakeland District Council,http://opendatacommunities.org/id/district-council/south-lakeland,30/09/2021,Development Implementation,Culture and Related Serv,http://opendatacommunities.org/def/concept/finance/sercop/objective/104,NETWORK RAIL (INFRASTRUCTURE) LTD,02904587,06-09-2021,0000169696,1116.73,0,Redevelopment/Restoration of Grange,360000,Public Transport
South Lakeland District Council,http://opendatacommunities.org/id/district-council/south-lakeland,30/09/2021,Business Support Community Services,Cultural Environmental Regulatory & Planning Services,http://opendatacommunities.org/def/concept/finance/sercop/objective/104,Masterstaff Limited,02777593,29-09-2021,0000170421,1119.6,0,Agency staff,261300,HR Recruitment & Assessment
South Lakeland District Council,http://opendatacommunities.org/id/district-council/south-lakeland,30/09/2021,Case Management Regulatory,Cultural Environmental Regulatory & Planning Services,http://opendatacommunities.org/def/concept/finance/sercop/objective/104,T J Health,,13-09-2021,0000169996,1120,0,invoice number - INV120,311600,Healthcare Services
South Lakeland District Council,http://opendatacommunities.org/id/district-council/south-lakeland,30/09/2021,Case Management People,Central Services,http://opendatacommunities.org/def/concept/finance/sercop/objective/102,CHARTERED INST OF ENVIRONMNTL HLTH,,16-09-2021,0000170173,1120,0,HMO Enforcement 7th - 8th October,202100,Financial Services Subscriptions
South Lakeland District Council,http://opendatacommunities.org/id/district-council/south-lakeland,30/09/2021,Case Management People,Central Services,http://opendatacommunities.org/def/concept/finance/sercop/objective/102,Eden Brown Limited,,06-09-2021,0000169689,1125,0,Payment for ,261400,HR Temporary & Agency Staff
South Lakeland District Council,http://opendatacommunities.org/id/district-council/south-lakeland,30/09/2021,Case Management People,Central Services,http://opendatacommunities.org/def/concept/finance/sercop/objective/102,Eden Brown Limited,,06-09-2021,0000169837,1125,0,Payment ,261400,HR Temporary & Agency Staff
South Lakeland District Council,http://opendatacommunities.org/id/district-council/south-lakeland,30/09/2021,Case Management People,Central Services,http://opendatacommunities.org/def/concept/finance/sercop/objective/102,Eden Brown Limited,,22-09-2021,0000170242,1125,0,Payment ,261400,HR Temporary & Agency Staff
South Lakeland District Council,http://opendatacommunities.org/id/district-council/south-lakeland,30/09/2021,Case Management People,Central Services,http://opendatacommunities.org/def/concept/finance/sercop/objective/102,Eden Brown Limited,,27-09-2021,0000170410,1125,0,Payment ,261400,HR Temporary & Agency Staff
South Lakeland District Council,http://opendatacommunities.org/id/district-council/south-lakeland,30/09/2021,Case Management People,Cultural Environmental Regulatory & Planning Services,http://opendatacommunities.org/def/concept/finance/sercop/objective/104,SOUTH LAKES HOUSING,IP031419,01-09-2021,0000169475,1190,0,Town View Fields Management Fee,191700,Facilities Property Management
South Lakeland District Council,http://opendatacommunities.org/id/district-council/south-lakeland,30/09/2021,Case Management People,Cultural Environmental Regulatory & Planning Services,http://opendatacommunities.org/def/concept/finance/sercop/objective/104,SOUTH LAKES HOUSING,IP031419,01-09-2021,0000169475,1190,0,Town View Fields Management Fee,191700,Facilities Property Management
South Lakeland District Council,http://opendatacommunities.org/id/district-council/south-lakeland,30/09/2021,Case Management Regulatory,Central Services,http://opendatacommunities.org/def/concept/finance/sercop/objective/102,The Oyster Partnership,05020374,16-09-2021,0000170031,1220,0,Agency Environmental Health Officer,261300,HR Recruitment & Assessment
South Lakeland District Council,http://opendatacommunities.org/id/district-council/south-lakeland,30/09/2021,Finance,Other Items,,CAPITA BUSINESS SERVICES LTD,02299747,08-09-2021,0000169021,1255,0,Income Management - setup new,261500,HR Training & Conferences
South Lakeland District Council,http://opendatacommunities.org/id/district-council/south-lakeland,30/09/2021,Case Management Regulatory,Other Items,,The Oyster Partnership,05020374,27-09-2021,0000170032,1273,0,Agency Officer - Licensing,261300,HR Recruitment & Assessment
South Lakeland District Council,http://opendatacommunities.org/id/district-council/south-lakeland,30/09/2021,Case Management Account Mgmt,Cultural Environmental Regulatory & Planning Services,http://opendatacommunities.org/def/concept/finance/sercop/objective/104,EXPERIAN LTD,00653331,27-09-2021,0000170341,1298.75,0,Goad Plan License renewal Local Plan,209999,Financial Services Not Elsewhere Classif
South Lakeland District Council,http://opendatacommunities.org/id/district-council/south-lakeland,30/09/2021,Kendal Town Hall,Cultural Environmental Regulatory & Planning Services,http://opendatacommunities.org/def/concept/finance/sercop/objective/104,PHS GROUP PLC,,01-09-2021,0000169614,1310.4,0,Weekly collection of sanitary waste and,131312,Cleaning & Janitorial Washroom Sanitat
South Lakeland District Council,http://opendatacommunities.org/id/district-council/south-lakeland,30/09/2021,Case Management People,Housing Services,http://opendatacommunities.org/def/concept/finance/sercop/objective/108,James Andrews Recruitment Solutions,06834852,16-09-2021,0000170010,1317.89,0,Payment ,261400,HR Temporary & Agency Staff
South Lakeland District Council,http://opendatacommunities.org/id/district-council/south-lakeland,30/09/2021,Case Management Account Mgmt,Central Services,http://opendatacommunities.org/def/concept/finance/sercop/objective/102,CFH Docmail Ltd,01716891,13-09-2021,0000169880,1360.55,0,Annual billing Revenues Printing 2021-22,300000,Mail Services
South Lakeland District Council,http://opendatacommunities.org/id/district-council/south-lakeland,30/09/2021,Business Support Community Services,Cultural Environmental Regulatory & Planning Services,http://opendatacommunities.org/def/concept/finance/sercop/objective/104,BRIAN ARMISTEAD LTD T/A SINKFALL RECYCLI,04133280,27-09-2021,0000170396,1400.17,0,Tipping charges,391110,Construction Buildings Construction
South Lakeland District Council,http://opendatacommunities.org/id/district-council/south-lakeland,30/09/2021,Business Support Community Services,Cultural Environmental Regulatory & Planning Services,http://opendatacommunities.org/def/concept/finance/sercop/objective/104,FAUN ZOELLER (UK) LTD,00751804,13-09-2021,0000169990,1419.3,0,Parts,381400,Vehicle Mgt Maintenance
South Lakeland District Council,http://opendatacommunities.org/id/district-council/south-lakeland,30/09/2021,Support Services,Other Items,,Tactical Security,,08-09-2021,0000169938,1453.2,0,RHSS - Provision of Marshalls in,192200,Facilities Security
South Lakeland District Council,http://opendatacommunities.org/id/district-council/south-lakeland,30/09/2021,Support Services,Other Items,,Tactical Security,,13-09-2021,0000169973,1493.2,0,RHSS - Provision of Marshalls in,192200,Facilities Security
South Lakeland District Council,http://opendatacommunities.org/id/district-council/south-lakeland,30/09/2021,Support Services,Other Items,,Tactical Security,,22-09-2021,0000170227,1493.2,0,RHSS - Provision of Marshalls in,192200,Facilities Security
South Lakeland District Council,http://opendatacommunities.org/id/district-council/south-lakeland,30/09/2021,Support Services,Other Items,,Tactical Security,,27-09-2021,0000170337,1493.2,0,RHSS - Provision of Marshalls in,192200,Facilities Security
South Lakeland District Council,http://opendatacommunities.org/id/district-council/south-lakeland,30/09/2021,Case Management Account Mgmt,Cultural Environmental Regulatory & Planning Services,http://opendatacommunities.org/def/concept/finance/sercop/objective/104,Hayes & Parkinson Ltd,00467905,16-09-2021,0000169987,1530.75,0,Cremation and Service for Gary Daccus,121000,Cemetery & Crematorium Burial & Crem
South Lakeland District Council,http://opendatacommunities.org/id/district-council/south-lakeland,30/09/2021,Business Support Community Services,Cultural Environmental Regulatory & Planning Services,http://opendatacommunities.org/def/concept/finance/sercop/objective/104,GARWOOD EUROPE LTD,04333504,22-09-2021,0000170304,1568.9,0,Parts,182011,Environment Waste Management Consumables
South Lakeland District Council,http://opendatacommunities.org/id/district-council/south-lakeland,30/09/2021,ICT Group,Central Services,http://opendatacommunities.org/def/concept/finance/sercop/objective/102,VODAFONE LIMITED,01471587,06-09-2021,0000169719,1577.64,0,"Mobile phone costs, covers 1/4/21 to",271800,ICT Telecommunications Mobile
South Lakeland District Council,http://opendatacommunities.org/id/district-council/south-lakeland,30/09/2021,Business Support Community Services,Cultural Environmental Regulatory & Planning Services,http://opendatacommunities.org/def/concept/finance/sercop/objective/104,PROBRUSH T/A NORTHERN MUNICIPAL SPARES L,,13-09-2021,0000169850,1600,0,Brushes,381600,Vehicle Mgt Leasing
South Lakeland District Council,http://opendatacommunities.org/id/district-council/south-lakeland,30/09/2021,Westmorland Centre Parking Office,Highways & Transport Services,http://opendatacommunities.org/def/concept/finance/sercop/objective/107,Security Plus   Limited,,22-09-2021,0000170039,1601.77,0,Bulk cash collection April 2021-March,209999,Financial Services Not Elsewhere Classif
South Lakeland District Council,http://opendatacommunities.org/id/district-council/south-lakeland,30/09/2021,Case Management People,Housing Services,http://opendatacommunities.org/def/concept/finance/sercop/objective/108,James Andrews Recruitment Solutions,06834852,06-09-2021,0000169812,1652.28,0,Payment ,261400,HR Temporary & Agency Staff
South Lakeland District Council,http://opendatacommunities.org/id/district-council/south-lakeland,30/09/2021,Case Management People,Housing Services,http://opendatacommunities.org/def/concept/finance/sercop/objective/108,James Andrews Recruitment Solutions,06834852,27-09-2021,0000170363,1652.28,0,Payment for Bruce Johnson,261400,HR Temporary & Agency Staff
South Lakeland District Council,http://opendatacommunities.org/id/district-council/south-lakeland,30/09/2021,Case Management Account Mgmt,Cultural Environmental Regulatory & Planning Services,http://opendatacommunities.org/def/concept/finance/sercop/objective/104,CONTINENTAL LANDSCAPES LTD,2108452,16-09-2021,0000168993,1654.19,0,Grounds maintenance extra works for,391310,Construction Open Spaces Construction
South Lakeland District Council,http://opendatacommunities.org/id/district-council/south-lakeland,30/09/2021,Westmorland Centre Parking Office,Highways & Transport Services,http://opendatacommunities.org/def/concept/finance/sercop/objective/107,Security Plus   Limited,,27-09-2021,0000170377,1725.23,0,Bulk cash collection April 2021-March,209999,Financial Services Not Elsewhere Classif
South Lakeland District Council,http://opendatacommunities.org/id/district-council/south-lakeland,30/09/2021,Case Management Account Mgmt,Cultural Environmental Regulatory & Planning Services,http://opendatacommunities.org/def/concept/finance/sercop/objective/104,CONTINENTAL LANDSCAPES LTD,2108452,06-09-2021,0000169806,1767.43,0,Parks Routine Maintenance for 2021-22,391310,Construction Open Spaces Construction
South Lakeland District Council,http://opendatacommunities.org/id/district-council/south-lakeland,30/09/2021,Case Management Regulatory,Central Services,http://opendatacommunities.org/def/concept/finance/sercop/objective/102,Macdonald & Company Freelance Ltd,03882135,16-09-2021,0000170038,1787.33,0,Contract Worker,261400,HR Temporary & Agency Staff
South Lakeland District Council,http://opendatacommunities.org/id/district-council/south-lakeland,30/09/2021,Case Management Account Mgmt,Cultural Environmental Regulatory & Planning Services,http://opendatacommunities.org/def/concept/finance/sercop/objective/104,GLASDON UK LTD,02160576,08-09-2021,0000169464,1829.18,0,Stanford bench with black Enviropol,109999,Building Not Elsewhere Classified
South Lakeland District Council,http://opendatacommunities.org/id/district-council/south-lakeland,30/09/2021,Case Management Account Mgmt,Highways & Transport Services,http://opendatacommunities.org/def/concept/finance/sercop/objective/107,CAPITA BUSINESS SERVICES LTD (NCR),,01-09-2021,0000170207,1958.51,0,2021-22 Internet Payment / bank charges,261500,HR Training & Conferences
South Lakeland District Council,http://opendatacommunities.org/id/district-council/south-lakeland,30/09/2021,Westmorland Centre Parking Office,Highways & Transport Services,http://opendatacommunities.org/def/concept/finance/sercop/objective/107,LRM Security Ltd,,06-09-2021,0000169767,1980,0,Tp provide 2 x parking/security,192213,Facilities Security Manned Guarding
South Lakeland District Council,http://opendatacommunities.org/id/district-council/south-lakeland,30/09/2021,Business Support Community Services,Cultural Environmental Regulatory & Planning Services,http://opendatacommunities.org/def/concept/finance/sercop/objective/104,Harry Park Tyres Ltd,08131208,16-09-2021,0000170079,1989.8,0,Tyres,381500,Vehicle Mgt Parts
South Lakeland District Council,http://opendatacommunities.org/id/district-council/south-lakeland,30/09/2021,Business Support Community Services,Cultural Environmental Regulatory & Planning Services,http://opendatacommunities.org/def/concept/finance/sercop/objective/104,FAUN ZOELLER (UK) LTD,00751804,13-09-2021,0000169990,2000,0,Parts,381400,Vehicle Mgt Maintenance
South Lakeland District Council,http://opendatacommunities.org/id/district-council/south-lakeland,30/09/2021,Case Management,Central Services,http://opendatacommunities.org/def/concept/finance/sercop/objective/102,KENDAL TOWN COUNCIL,,22-09-2021,0000170256,2000,0,Climate Change Fund grant payment to,908000,Public Bodies Council support services
South Lakeland District Council,http://opendatacommunities.org/id/district-council/south-lakeland,30/09/2021,Business Support Community Services,Cultural Environmental Regulatory & Planning Services,http://opendatacommunities.org/def/concept/finance/sercop/objective/104,BRIAN ARMISTEAD LTD T/A SINKFALL RECYCLI,04133280,16-09-2021,0000170066,2030.83,0,Tipping charges,391110,Construction Buildings Construction
South Lakeland District Council,http://opendatacommunities.org/id/district-council/south-lakeland,30/09/2021,Case Management Account Mgmt,Cultural Environmental Regulatory & Planning Services,http://opendatacommunities.org/def/concept/finance/sercop/objective/104,CONTINENTAL LANDSCAPES LTD,2108452,06-09-2021,0000169806,2039.34,0,Parks Routine Maintenance for 2021-22,391310,Construction Open Spaces Construction
South Lakeland District Council,http://opendatacommunities.org/id/district-council/south-lakeland,30/09/2021,Business Support Community Services,Cultural Environmental Regulatory & Planning Services,http://opendatacommunities.org/def/concept/finance/sercop/objective/104,Masterstaff Limited,02777593,22-09-2021,0000170297,2131.2,0,Agency staff,261300,HR Recruitment & Assessment
South Lakeland District Council,http://opendatacommunities.org/id/district-council/south-lakeland,30/09/2021,Business Support Community Services,Cultural Environmental Regulatory & Planning Services,http://opendatacommunities.org/def/concept/finance/sercop/objective/104,Masterstaff Limited,02777593,01-09-2021,0000169706,2138.4,0,Agency staff,261300,HR Recruitment & Assessment
South Lakeland District Council,http://opendatacommunities.org/id/district-council/south-lakeland,30/09/2021,Case Management Regulatory,Central Services,http://opendatacommunities.org/def/concept/finance/sercop/objective/102,The Oyster Partnership,05020374,13-09-2021,0000170034,2180,0,Agency Environmental Health Officer,261300,HR Recruitment & Assessment
South Lakeland District Council,http://opendatacommunities.org/id/district-council/south-lakeland,30/09/2021,Business Support Community Services,Cultural Environmental Regulatory & Planning Services,http://opendatacommunities.org/def/concept/finance/sercop/objective/104,PENNINGTONS (KENDAL) LIMITED,00434649,06-09-2021,0000169782,2200,0,Use of Boundary Bank,182013,Environment Waste Mgt Waste Collection
South Lakeland District Council,http://opendatacommunities.org/id/district-council/south-lakeland,30/09/2021,Case Management Account Mgmt,Cultural Environmental Regulatory & Planning Services,http://opendatacommunities.org/def/concept/finance/sercop/objective/104,CONTINENTAL LANDSCAPES LTD,2108452,16-09-2021,0000168993,2211.81,0,Grounds maintenance extra works for,391310,Construction Open Spaces Construction
South Lakeland District Council,http://opendatacommunities.org/id/district-council/south-lakeland,30/09/2021,Business Support Community Services,Cultural Environmental Regulatory & Planning Services,http://opendatacommunities.org/def/concept/finance/sercop/objective/104,Masterstaff Limited,02777593,08-09-2021,0000169853,2239.2,0,Agency staff,261300,HR Recruitment & Assessment
South Lakeland District Council,http://opendatacommunities.org/id/district-council/south-lakeland,30/09/2021,Business Support Community Services,Cultural Environmental Regulatory & Planning Services,http://opendatacommunities.org/def/concept/finance/sercop/objective/104,Masterstaff Limited,02777593,16-09-2021,0000170074,2239.2,0,Agency staff,261300,HR Recruitment & Assessment
South Lakeland District Council,http://opendatacommunities.org/id/district-council/south-lakeland,30/09/2021,Case Management Account Mgmt,Cultural Environmental Regulatory & Planning Services,http://opendatacommunities.org/def/concept/finance/sercop/objective/104,CONTINENTAL LANDSCAPES LTD,2108452,06-09-2021,0000169808,2260.1,0,For disposal of waste to Kendal Fell,391310,Construction Open Spaces Construction
South Lakeland District Council,http://opendatacommunities.org/id/district-council/south-lakeland,30/09/2021,Case Management Regulatory,Central Services,http://opendatacommunities.org/def/concept/finance/sercop/objective/102,Macdonald & Company Freelance Ltd,03882135,27-09-2021,0000170174,2263.33,0,Contract Worker,261400,HR Temporary & Agency Staff
South Lakeland District Council,http://opendatacommunities.org/id/district-council/south-lakeland,30/09/2021,Support Services,Central Services,http://opendatacommunities.org/def/concept/finance/sercop/objective/102,Print.UK.Com,,27-09-2021,0000170382,2302.79,0,Invoice 72077. Annual canvass printing,191600,Facilities Printing
South Lakeland District Council,http://opendatacommunities.org/id/district-council/south-lakeland,30/09/2021,Business Support Community Services,Cultural Environmental Regulatory & Planning Services,http://opendatacommunities.org/def/concept/finance/sercop/objective/104,Verizon Connect UK Ltd,05265904,13-09-2021,0000169855,2325,0,Tracking system,361000,Public Transport Fleet Management
South Lakeland District Council,http://opendatacommunities.org/id/district-council/south-lakeland,30/09/2021,Support Services,Culture and Related Serv,http://opendatacommunities.org/def/concept/finance/sercop/objective/104,GRANTS- MISCELLANEOUS,,27-09-2021,0000170414,2375.72,0,Archway 2 & 3 West - Grant for Building,201700,Financial Services Grants
South Lakeland District Council,http://opendatacommunities.org/id/district-council/south-lakeland,30/09/2021,Support Services,Central Services,http://opendatacommunities.org/def/concept/finance/sercop/objective/102,Print.UK.Com,,27-09-2021,0000170383,2613,0,Invoice 72078. Printing canvass,191600,Facilities Printing
South Lakeland District Council,http://opendatacommunities.org/id/district-council/south-lakeland,30/09/2021,Case Management People,Central Services,http://opendatacommunities.org/def/concept/finance/sercop/objective/102,MORGAN HUNT UK LIMITED,04349535,06-09-2021,0000168979,2621.3,0,Payment for ,269999,HR Not Elsewhere Classified
South Lakeland District Council,http://opendatacommunities.org/id/district-council/south-lakeland,30/09/2021,Case Management Regulatory,Central Services,http://opendatacommunities.org/def/concept/finance/sercop/objective/102,Macdonald & Company Freelance Ltd,03882135,13-09-2021,0000169964,2632,0,Contract Worker,261400,HR Temporary & Agency Staff
South Lakeland District Council,http://opendatacommunities.org/id/district-council/south-lakeland,30/09/2021,Business Support Community Services,Cultural Environmental Regulatory & Planning Services,http://opendatacommunities.org/def/concept/finance/sercop/objective/104,BRIAN ARMISTEAD LTD T/A SINKFALL RECYCLI,04133280,16-09-2021,0000170067,2660.61,0,Tipping charges,391110,Construction Buildings Construction
South Lakeland District Council,http://opendatacommunities.org/id/district-council/south-lakeland,30/09/2021,ICT Group,Central Services,http://opendatacommunities.org/def/concept/finance/sercop/objective/102,MIDLAND SOFTWARE LTD,01852206,01-09-2021,0000169703,2700,0,9 hours of out of hours support for the,271600,ICT Software Customised & Bespoke
South Lakeland District Council,http://opendatacommunities.org/id/district-council/south-lakeland,30/09/2021,Business Support Community Services,Cultural Environmental Regulatory & Planning Services,http://opendatacommunities.org/def/concept/finance/sercop/objective/104,BRIAN ARMISTEAD LTD T/A SINKFALL RECYCLI,04133280,27-09-2021,0000170361,2745.36,0,Tipping charges,391110,Construction Buildings Construction
South Lakeland District Council,http://opendatacommunities.org/id/district-council/south-lakeland,30/09/2021,Customer Services,Cultural Environmental Regulatory & Planning Services,http://opendatacommunities.org/def/concept/finance/sercop/objective/104,MILNTHORPE KENNELS & CATTERY,08932302,27-09-2021,0000170375,2791.67,0,Stray dog kennelling fees 2021/22,181500,Environment Animal Services
South Lakeland District Council,http://opendatacommunities.org/id/district-council/south-lakeland,30/09/2021,Case Management Regulatory,Central Services,http://opendatacommunities.org/def/concept/finance/sercop/objective/102,Macdonald & Company Freelance Ltd,03882135,06-09-2021,0000169795,2804.67,0,Contract Worker,261400,HR Temporary & Agency Staff
South Lakeland District Council,http://opendatacommunities.org/id/district-council/south-lakeland,30/09/2021,Support Services,Other Items,,Tactical Security,,13-09-2021,0000169937,2890.19,0,RHSS - Provision of Marshalls in,192200,Facilities Security
South Lakeland District Council,http://opendatacommunities.org/id/district-council/south-lakeland,30/09/2021,Business Support Community Services,Cultural Environmental Regulatory & Planning Services,http://opendatacommunities.org/def/concept/finance/sercop/objective/104,Romaquip UK,,13-09-2021,0000169862,3400,0,Vehicle hire,381000,Vehicle Mgt Commercial
South Lakeland District Council,http://opendatacommunities.org/id/district-council/south-lakeland,30/09/2021,Business Support Community Services,Cultural Environmental Regulatory & Planning Services,http://opendatacommunities.org/def/concept/finance/sercop/objective/104,TRAPEZE GROUP (UK) LTD,,16-09-2021,0000170011,3484.66,0,Fleetmaster support 01/11/20 - 31/10/21,271600,ICT Software Customised & Bespoke
South Lakeland District Council,http://opendatacommunities.org/id/district-council/south-lakeland,30/09/2021,Case Management Account Mgmt,Central Services,http://opendatacommunities.org/def/concept/finance/sercop/objective/102,CAPITA BUSINESS SERVICES LTD (NCR),,01-09-2021,0000170207,3821.55,0,2021-22 Internet Payment / bank charges,261500,HR Training & Conferences
South Lakeland District Council,http://opendatacommunities.org/id/district-council/south-lakeland,30/09/2021,Business Support Community Services,Cultural Environmental Regulatory & Planning Services,http://opendatacommunities.org/def/concept/finance/sercop/objective/104,GLASDON UK LTD,02160576,01-09-2021,0000169722,4046.94,0,Litter bins per your quotation,109999,Building Not Elsewhere Classified
South Lakeland District Council,http://opendatacommunities.org/id/district-council/south-lakeland,30/09/2021,Case Management Account Mgmt,Cultural Environmental Regulatory & Planning Services,http://opendatacommunities.org/def/concept/finance/sercop/objective/104,CONTINENTAL LANDSCAPES LTD,2108452,06-09-2021,0000169807,4109.55,0,For gravedigging for 2021/22,391310,Construction Open Spaces Construction
South Lakeland District Council,http://opendatacommunities.org/id/district-council/south-lakeland,30/09/2021,Case Management People,Housing Services,http://opendatacommunities.org/def/concept/finance/sercop/objective/108,SOUTH LAKES HOUSING,IP031419,01-09-2021,0000169475,4200,0,Town View Fields Management Fee,191700,Facilities Property Management
South Lakeland District Council,http://opendatacommunities.org/id/district-council/south-lakeland,30/09/2021,Customer Services,Cultural Environmental Regulatory & Planning Services,http://opendatacommunities.org/def/concept/finance/sercop/objective/104,RIGHT 2 WORK,,16-09-2021,0000169883,4438,0,Bulky Waste scheme 2021/22,321010,Social Care Adult Advice & Counselling
South Lakeland District Council,http://opendatacommunities.org/id/district-council/south-lakeland,30/09/2021,Case Management Account Mgmt,Cultural Environmental Regulatory & Planning Services,http://opendatacommunities.org/def/concept/finance/sercop/objective/104,The Fifth Sector Limited,07539809,20-09-2021,0000170246,4494,0,Consultancy services for Bay Cultural,150000,Consultancy
South Lakeland District Council,http://opendatacommunities.org/id/district-council/south-lakeland,30/09/2021,Case Management,Central Services,http://opendatacommunities.org/def/concept/finance/sercop/objective/102,LANCASTER CITY COUNCIL,,22-09-2021,0000169869,4650,0,Contribution to PA Consultancy Costs,201900,Financial Services Refund
South Lakeland District Council,http://opendatacommunities.org/id/district-council/south-lakeland,30/09/2021,Kendal Town Hall,Other Items,,SOUNDSMITH LIMITED,05366630,27-09-2021,0000170388,4725,0,Audio visual support for the SLDC,171111,Education Audio Visual
South Lakeland District Council,http://opendatacommunities.org/id/district-council/south-lakeland,30/09/2021,Business Support Community Services,Cultural Environmental Regulatory & Planning Services,http://opendatacommunities.org/def/concept/finance/sercop/objective/104,ALLSTAR BUSINESS SOLUTIONS LTD (NCR),2631112,01-09-2021,0000170292,4798.06,0,Fuel to 15/9,381600,Vehicle Mgt Leasing
South Lakeland District Council,http://opendatacommunities.org/id/district-council/south-lakeland,30/09/2021,Support Services,Central Services,http://opendatacommunities.org/def/concept/finance/sercop/objective/102,TIAA Ltd,04546319,01-09-2021,0000169680,5100,0,21-22 internal audit service,201100,Financial Services Audit
South Lakeland District Council,http://opendatacommunities.org/id/district-council/south-lakeland,30/09/2021,Case Management Account Mgmt,Cultural Environmental Regulatory & Planning Services,http://opendatacommunities.org/def/concept/finance/sercop/objective/104,CUMBRIA TOURISM,03027358,13-09-2021,0000169949,5200,0,Cumbria Tourism Partnership,291400,Arts & Leisure Services Sport & Fitness
South Lakeland District Council,http://opendatacommunities.org/id/district-council/south-lakeland,30/09/2021,Case Management People,Central Services,http://opendatacommunities.org/def/concept/finance/sercop/objective/102,MORGAN HUNT UK LIMITED,04349535,06-09-2021,0000168980,5317.33,0,Payment for ,269999,HR Not Elsewhere Classified
South Lakeland District Council,http://opendatacommunities.org/id/district-council/south-lakeland,30/09/2021,Westmorland Centre Parking Office,Highways & Transport Services,http://opendatacommunities.org/def/concept/finance/sercop/objective/107,Orbility,,22-09-2021,0000170225,5495.62,0,Maintenance agreement for WMMSCP,111200,Catering Food & Beverages
South Lakeland District Council,http://opendatacommunities.org/id/district-council/south-lakeland,30/09/2021,Westmorland Centre Parking Office,Highways & Transport Services,http://opendatacommunities.org/def/concept/finance/sercop/objective/107,CAPITA BUSINESS SERVICES LTD (NCR),,01-09-2021,0000169838,5676.93,0,Credit card commission April 2021-March,261500,HR Training & Conferences
South Lakeland District Council,http://opendatacommunities.org/id/district-council/south-lakeland,30/09/2021,Business Support Community Services,Cultural Environmental Regulatory & Planning Services,http://opendatacommunities.org/def/concept/finance/sercop/objective/104,Initial,01298292,16-09-2021,0000170104,5771.75,0,Clinical waste collections,131011,Cleaning & Janitorial Cleaning Materials
South Lakeland District Council,http://opendatacommunities.org/id/district-council/south-lakeland,30/09/2021,Case Management,Central Services,http://opendatacommunities.org/def/concept/finance/sercop/objective/102,LANCASTER CITY COUNCIL,,22-09-2021,0000170131,6000,0,Contribution to PA Consultancy Costs,201900,Financial Services Refund
South Lakeland District Council,http://opendatacommunities.org/id/district-council/south-lakeland,30/09/2021,ICT Group,Central Services,http://opendatacommunities.org/def/concept/finance/sercop/objective/102,EDEN DISTRICT COUNCIL,,27-09-2021,0000170175,6075,0,Project Management for Revenues and,908000,Public Bodies Council support services
South Lakeland District Council,http://opendatacommunities.org/id/district-council/south-lakeland,30/09/2021,Case Management Account Mgmt,Cultural Environmental Regulatory & Planning Services,http://opendatacommunities.org/def/concept/finance/sercop/objective/104,The Fifth Sector Limited,07539809,20-09-2021,0000170245,7245,0,Consultancy services for Bay Cultural,150000,Consultancy
South Lakeland District Council,http://opendatacommunities.org/id/district-council/south-lakeland,30/09/2021,Case Management Account Mgmt,SLDC as Agent,,PAY BY PHONE (PAYPOINT),,22-09-2021,0000170259,7292.92,0,Fees payable for use of PaybyPhone at,351400,Street & Traffic Traffic Control
South Lakeland District Council,http://opendatacommunities.org/id/district-council/south-lakeland,30/09/2021,Business Support Community Services,Cultural Environmental Regulatory & Planning Services,http://opendatacommunities.org/def/concept/finance/sercop/objective/104,CUMBRIA COUNTY COUNCIL,,13-09-2021,0000169991,7361,0,Partnership Development Officer,908000,Public Bodies Council support services
South Lakeland District Council,http://opendatacommunities.org/id/district-council/south-lakeland,30/09/2021,Support Services,Other Items,,CUMBRIA TOURISM,03027358,08-09-2021,0000169714,8000,0,Welcome Back Funding - District Wide,291400,Arts & Leisure Services Sport & Fitness
South Lakeland District Council,http://opendatacommunities.org/id/district-council/south-lakeland,30/09/2021,Support Services,Culture and Related Serv,http://opendatacommunities.org/def/concept/finance/sercop/objective/104,Bloom Procurement Services Ltd,,08-09-2021,0000169715,10000,0,Grange Lido & Promenade Stage 5 & 6,151900,Consultancy Management
South Lakeland District Council,http://opendatacommunities.org/id/district-council/south-lakeland,30/09/2021,Case Management,Culture and Related Serv,http://opendatacommunities.org/def/concept/finance/sercop/objective/104,KENDAL TOWN COUNCIL,,22-09-2021,0000170257,10000,0,LIPs grant to fund Ivy Screening,908000,Public Bodies Council support services
South Lakeland District Council,http://opendatacommunities.org/id/district-council/south-lakeland,30/09/2021,Case Management Account Mgmt,Cultural Environmental Regulatory & Planning Services,http://opendatacommunities.org/def/concept/finance/sercop/objective/104,CONTINENTAL LANDSCAPES LTD,2108452,06-09-2021,0000169806,10876.47,0,Parks Routine Maintenance for 2021-22,391310,Construction Open Spaces Construction
South Lakeland District Council,http://opendatacommunities.org/id/district-council/south-lakeland,30/09/2021,Business Support Community Services,Cultural Environmental Regulatory & Planning Services,http://opendatacommunities.org/def/concept/finance/sercop/objective/104,CUMBRIA WASTE RECYCLING LTD,03162439,22-09-2021,0000170326,11973.54,0,Empty recycling banks,182012,Environment Waste Management Recycling
South Lakeland District Council,http://opendatacommunities.org/id/district-council/south-lakeland,30/09/2021,Support Services,SLDC as Agent,,ANTHONY COLLINS SOLICITORS,OC313432,13-09-2021,0000169954,12840,0,Cumbria Choice Based Lettings run,281300,Legal Services Legal Opinion
South Lakeland District Council,http://opendatacommunities.org/id/district-council/south-lakeland,30/09/2021,Support Services,Central Services,http://opendatacommunities.org/def/concept/finance/sercop/objective/102,Print.UK.Com,,27-09-2021,0000170384,17622.73,0,Invoice 72079. Annual canvass - postage,191600,Facilities Printing
South Lakeland District Council,http://opendatacommunities.org/id/district-council/south-lakeland,30/09/2021,Business Support Community Services,Cultural Environmental Regulatory & Planning Services,http://opendatacommunities.org/def/concept/finance/sercop/objective/104,ALLSTAR BUSINESS SOLUTIONS LTD (NCR),2631112,01-09-2021,0000170292,19636.69,0,Fuel to 15/9,381600,Vehicle Mgt Leasing
South Lakeland District Council,http://opendatacommunities.org/id/district-council/south-lakeland,30/09/2021,Case Management Account Mgmt,Central Services,http://opendatacommunities.org/def/concept/finance/sercop/objective/102,MERITEC LTD,03224622,27-09-2021,0000170387,24705.23,0,reference john freeman,391200,Construction Engineering
South Lakeland District Council,http://opendatacommunities.org/id/district-council/south-lakeland,30/09/2021,ICT Group,Central Services,http://opendatacommunities.org/def/concept/finance/sercop/objective/102,IT PROFESSIONAL SERVICES (ITPS),,16-09-2021,0000169840,27443.93,0,Backup and DR services as per contract,279999,ICT Not Elsewhere Classified
South Lakeland District Council,http://opendatacommunities.org/id/district-council/south-lakeland,30/09/2021,Case Management Account Mgmt,Non-Service Payments,,Ulverston BID Company Ltd,09761005,16-09-2021,0000170078,31395.25,0,Monies collected,201700,Financial Services Grants
South Lakeland District Council,http://opendatacommunities.org/id/district-council/south-lakeland,30/09/2021,Case Management Account Mgmt,Non-Service Payments,,Kendal BID Ltd,08986243,22-09-2021,0000170209,42507.02,0,Monies collected,201700,Financial Services Grants
South Lakeland District Council,http://opendatacommunities.org/id/district-council/south-lakeland,30/09/2021,Case Management Account Mgmt,Culture and Related Serv,http://opendatacommunities.org/def/concept/finance/sercop/objective/104,Clark & Kent Contractors,,27-09-2021,0000170214,49200,0,To design and install the Pump Track at,331000,Sports Playground Equipment
South Lakeland District Council,http://opendatacommunities.org/id/district-council/south-lakeland,30/09/2021,Support Services,Central Services,http://opendatacommunities.org/def/concept/finance/sercop/objective/102,Bloom Procurement Services Ltd,,16-09-2021,0000169664,50091.25,0,SL House/KTH RIBA Stage 5 & 6,151900,Consultancy Management
South Lakeland District Council,http://opendatacommunities.org/id/district-council/south-lakeland,30/09/2021,Case Management Account Mgmt,Cultural Environmental Regulatory & Planning Services,http://opendatacommunities.org/def/concept/finance/sercop/objective/104,CONTINENTAL LANDSCAPES LTD,2108452,06-09-2021,0000169806,51799.2,0,Parks Routine Maintenance for 2021-22,391310,Construction Open Spaces Construction
South Lakeland District Council,http://opendatacommunities.org/id/district-council/south-lakeland,30/09/2021,Support Services,Central Services,http://opendatacommunities.org/def/concept/finance/sercop/objective/102,LAMBERT SMITH HAMPTON GROUP,2521225,13-09-2021,0000169956,80268.66,0,Property Services Contract (Apr - Sept,191700,Facilities Property Management
South Lakeland District Council,http://opendatacommunities.org/id/district-council/south-lakeland,30/09/2021,Business Support Community Services,Central Services,http://opendatacommunities.org/def/concept/finance/sercop/objective/102,GARWOOD EUROPE LTD,04333504,16-09-2021,0000170003,86418,0,4 x 7.5t RCVs per ESPO Framework 215_9,182011,Environment Waste Management Consumables
South Lakeland District Council,http://opendatacommunities.org/id/district-council/south-lakeland,30/09/2021,Business Support Community Services,Central Services,http://opendatacommunities.org/def/concept/finance/sercop/objective/102,GARWOOD EUROPE LTD,04333504,16-09-2021,0000170004,86418,0,4 x 7.5t RCVs per ESPO Framework 215_9,182011,Environment Waste Management Consumables
South Lakeland District Council,http://opendatacommunities.org/id/district-council/south-lakeland,30/09/2021,Case Management People,Housing,http://opendatacommunities.org/def/concept/finance/sercop/objective/108,LAKELAND HOUSING TRUST,,27-09-2021,0000170389,136825,0,Community Housing Fund Grant Payment,201700,Financial Services Grants
South Lakeland District Council,http://opendatacommunities.org/id/district-council/south-lakeland,30/09/2021,Case Management Account Mgmt,Central Services,http://opendatacommunities.org/def/concept/finance/sercop/objective/102,Caddick Construction (NW) Limited,,13-09-2021,0000169980,210380.94,0,Contract number NW127 - Refurbishment,391100,Construction Buildings
South Lakeland District Council,http://opendatacommunities.org/id/district-council/south-lakeland,30/09/2021,Case Management Account Mgmt,Central Services,http://opendatacommunities.org/def/concept/finance/sercop/objective/102,Caddick Construction (NW) Limited,,13-09-2021,0000169981,294241.6,0,Contract number NW127 - Refurbishment,391100,Construction Buildings
South Lakeland District Council,http://opendatacommunities.org/id/district-council/south-lakeland,30/09/2021,Support Services,Environment Regulatory,,SSCL (Environment Agency),,16-09-2021,0000170182,359420.62,0,North Kendal Industrial Area Flood Risk,180000,Environmental Services
